fUSD/lending_fUSD_20250208
["ID","MTS","AMOUNT","RATE_DAILY","PERIOD"]
[352207122,1738998632172,-517.06508573,0.00011077,2]
[352207123,1738998632201,-387.645,0.00011077,2]
[352207124,1738998632213,-441.33433214,0.00011077,2]
[352207125,1738998632231,-720.32558213,0.00011077,2]
[352207127,1738998632241,-150.0,0.00011174,2]
[352207129,1738998632250,-119.16741254,0.00011183,2]
[352207131,1738998632261,-30.83258746,0.00011183,2]
[352207132,1738998632271,-150.0,0.00011187,2]
[352207133,1738998632281,-634.62741254,0.00011216,2]
[352207134,1738998632293,-54.86258746,0.00011216,2]
[352207135,1738998632302,-150.0,0.00011237,2]
[352207136,1738998632312,-150.0,0.00011349,2]
[352207137,1738998632321,-150.0,0.00011374,2]
[352207138,1738998632331,-738.70385361,0.00011392,2]
[352207160,1738998633063,-261.29614639,0.00011392,2]
[352207161,1738998633073,-150.0,0.00011395,2]
[352207162,1738998633082,-150.0,0.00011405,2]
[352207163,1738998633092,-150.0,0.00011419,2]
[352207164,1738998633102,-103.98935361,0.00011441,2]
[352207165,1738998633114,-46.01064639,0.00011441,2]
[352207166,1738998633131,-150.0,0.00011475,2]
[352207167,1738998633141,-150.0,0.00011519,2]
[352207168,1738998633151,-134.46935361,0.00011521,2]
[352207169,1738998633169,-15.53064639,0.00011521,2]
[352207170,1738998633178,-2764.06030298,0.00011521,2]
[352207171,1738998633188,-150.0,0.00011529,2]
[352207172,1738998633197,-200.0,0.00011536,2]
[352207173,1738998633207,-150.0,0.00011543,2]
[352207174,1738998633216,-200.0,0.00011546,2]
[352207175,1738998633226,-150.0,0.00011574,2]
[352207176,1738998633235,-150.0,0.0001159,2]
[352207177,1738998633244,-150.0,0.00011603,2]
[352207178,1738998633254,-150.0,0.00011605,2]
[352207179,1738998633263,-1020.40905063,0.0001162,2]
[352207185,1738998638031,-389.3277661,0.0001162,2]
[352207186,1738998638043,-141.11918327,0.0001162,2]
[352207187,1738998638053,-174.03,0.0001162,2]
[352207188,1738998638062,-152.76327508,0.00011621,2]
[352207850,1738998643688,-347.23672492,0.00011621,2]
[352207852,1738998643701,-500.0,0.00011621,2]
[352207855,1738998643714,-112.91327508,0.00011621,2]
[352208099,1738998646029,-288.28527351,0.00011621,2]
[352208101,1738998646044,-98.80145141,0.00011621,2]
[352208104,1738998646056,-500.0,0.00011621,2]
[352208106,1738998646068,-173.00568448,0.00011621,2]
[352208109,1738998646083,-326.99431552,0.00011621,2]
[352208111,1738998646096,-500.0,0.00011621,2]
[352208113,1738998646108,-500.0,0.00011621,2]
[352208116,1738998646120,-34.29667857,0.00011621,2]
[352208120,1738998646153,-465.70332143,0.00011621,2]
[352208122,1738998646165,-26.20533503,0.00011621,2]
[352210747,1738999347694,150.0,8.241e-05,2]
[352210762,1738999832044,-637.22,8.809e-05,2]
[352210763,1738999832054,-150.0,9.999e-05,2]
[352210764,1738999832063,-6070.89034324,0.0001,2]
[352211196,1738999838247,-10790.68147471,0.0001,2]
[352211200,1738999838274,-1121.42059434,0.0001,2]
[352211202,1738999838285,-480.6133065,0.0001,2]
[352211401,1738999840226,-17917.638216,0.0001,2]
[352213368,1738999950890,374.08147681,8.219e-05,2]
[352213369,1738999950920,275.22852319,8.219e-05,2]
[352213370,1739000196649,524.77147681,7.964e-05,2]
[352213371,1739000196672,475.22852319,7.964e-05,2]
[352213372,1739000453232,845.4,0.00012001,10]
[352213374,1739000882130,324.77147681,8.219e-05,2]
[352213375,1739000882152,340.67852319,8.219e-05,2]
[352213377,1739001032367,-1000.0,8.525e-05,2]
[352213378,1739001032381,-150.0,8.531e-05,2]
[352213379,1739001032392,-361.8,8.596e-05,2]
[352213380,1739001032402,-150.0,8.626e-05,2]
[352213381,1739001032411,-440.91,8.642e-05,2]
[352213382,1739001032420,-161.42,8.733e-05,2]
[352213383,1739001032429,-161.42,8.744e-05,2]
[352213384,1739001032439,-161.42,8.755e-05,2]
[352213385,1739001032448,-161.42,8.766e-05,2]
[352213386,1739001032458,-161.42,8.777e-05,2]
[352213387,1739001032470,-294.15,8.872e-05,2]
[352213388,1739001032480,-1500.0,8.896e-05,2]
[352213389,1739001032490,-173.66,9.452e-05,2]
[352213390,1739001032500,-500.0,9.562e-05,2]
[352213391,1739001032509,-150.0,9.568e-05,2]
[352213392,1739001032520,-1000.0,9.591e-05,2]
[352213393,1739001032530,-150.0,9.686e-05,2]
[352213411,1739001032992,-440.91,9.722e-05,2]
[352213416,1739001033032,-150.0,9.782e-05,2]
[352213419,1739001033051,-1548.48,9.782e-05,2]
[352213420,1739001033061,-190.0,9.973e-05,2]
[352213421,1739001033070,-42796.11020852,0.0001,2]
[352213422,1739001033083,-32885.39032682,0.0001,2]
[352213423,1739001033138,-5821.75556347,0.0001,2]
[352213426,1739001038112,-1008.99495766,0.0001,2]
[352213629,1739001040405,-1175.45749203,0.0001,2]
[352213631,1739001040416,-307.26874014,0.0001,2]
[352213633,1739001040427,-1120.64415549,0.0001,2]
[352213635,1739001040438,-3052.9685953,0.0001,2]
[352213638,1739001040449,-578.88,0.0001,2]
[352213941,1739001043353,-3297.09219501,0.0001,2]
[352213947,1739001043397,-75029.41181317,0.0001,2]
[352213949,1739001043407,-45208.18313383,0.0001,2]
[352213951,1739001043416,-500.0,0.0001,2]
[352213953,1739001043425,-4000.0,0.0001,2]
[352213955,1739001043434,-2303.38358585,0.0001,2]
[352213957,1739001043443,-162.19,0.00010135,2]
[352213959,1739001043452,-160.66,0.00010137,2]
[352213961,1739001043461,-389.51,0.00010137,2]
[352213963,1739001043471,-13713.26,0.00010175,2]
[352213965,1739001043483,-426.33771271,0.00010191,2]
[352213967,1739001043494,-1059.0,0.00010265,2]
[352213969,1739001043503,-2303.38358581,0.0001036,2]
[352213971,1739001043512,-665.45,0.00010404,2]
[352213973,1739001043521,-150.0,0.00010485,2]
[352213975,1739001043530,-150.0,0.00010517,2]
[352213977,1739001043539,-150.0,0.00010578,2]
[352213979,1739001043548,-150.0,0.00010617,2]
[352213981,1739001043557,-150.0,0.00010634,2]
[352213983,1739001043566,-150.0,0.00010639,2]
[352213985,1739001043575,-150.0,0.00010653,2]
[352213987,1739001043585,-1000.0,0.00010656,2]
[352213990,1739001043595,-150.0,0.00010668,2]
[352213991,1739001043604,-426.33771272,0.00010672,2]
[352213993,1739001043615,-150.0,0.0001068,2]
[352213996,1739001043629,-203.0,0.000107,5]
[352213997,1739001043641,-161.44,0.00010702,2]
[352214000,1739001043650,-161.44,0.00010715,2]
[352214002,1739001043659,-161.44,0.00010728,2]
[352214004,1739001043669,-161.44,0.00010742,2]
[352214006,1739001043678,-161.44,0.00010755,2]
[352214008,1739001043687,-245.0,0.0001076,2]
[352214009,1739001043696,-150.0,0.00010775,2]
[352214011,1739001043706,-150.0,0.00010775,2]
[352214013,1739001043715,-273.54525202,0.00010775,2]
[352214016,1739001043726,-150.0,0.00010775,2]
[352214018,1739001043735,-237.8045868,0.00010775,2]
[352214020,1739001043745,-440.91,0.00010802,2]
[352214022,1739001043755,-1059.0,0.00010805,2]
[352214024,1739001043764,-2303.38358581,0.0001082,2]
[352214026,1739001043774,-150.0,0.00010839,2]
[352214028,1739001043784,-150.0,0.0001084,2]
[352214030,1739001043793,-150.0,0.0001084,2]
[352214032,1739001043802,-150.0,0.00010917,2]
[352214034,1739001043811,-150.0,0.00010924,2]
[352214036,1739001043822,-1000.0,0.00010926,2]
[352214038,1739001043831,-500.0,0.00010957,2]
[352214040,1739001043840,-500.0,0.00010957,2]
[352214042,1739001043849,-500.0,0.00010957,2]
[352214044,1739001043858,-500.0,0.00010957,2]
[352214046,1739001043867,-500.0,0.00010957,2]
[352214048,1739001043876,-500.0,0.00010957,2]
[352214050,1739001043885,-500.0,0.00010957,2]
[352214052,1739001043894,-500.0,0.00010957,2]
[352214053,1739001043903,-500.0,0.00010957,2]
[352214055,1739001043912,-500.0,0.00010957,2]
[352214057,1739001043922,-500.0,0.00010957,2]
[352214059,1739001043931,-500.0,0.00010957,2]
[352214061,1739001043940,-301.67798652,0.00010957,2]
[352214063,1739001043950,-500.0,0.00010957,2]
[352214065,1739001043959,-352.1622,0.00010957,2]
[352214068,1739001043968,-500.0,0.00010957,2]
[352214069,1739001043978,-500.0,0.00010957,2]
[352214072,1739001043987,-500.0,0.00010957,2]
[352214074,1739001043996,-500.0,0.00010957,2]
[352214076,1739001044006,-500.0,0.00010957,2]
[352214078,1739001044015,-500.0,0.00010957,2]
[352214080,1739001044024,-500.0,0.00010959,2]
[352214082,1739001044033,-5518.65895995,0.00010959,2]
[352214084,1739001044043,-500.0,0.00010973,2]
[352214086,1739001044053,-17163.35223482,0.00010999,2]
[352214088,1739001044062,-666.0,0.00010999,2]
[352214090,1739001044071,-775474.60268694,0.00011,2]
[352214092,1739001044081,-886186.19799025,0.00011,2]
[352214094,1739001044090,-151.0,0.00011,2]
[352214096,1739001044099,-151.0,0.00011,2]
[352214098,1739001044109,-150.0,0.00011015,2]
[352214100,1739001044119,-150.0,0.00011032,2]
[352214102,1739001044128,-672.39239749,0.00011032,2]
[352214104,1739001044137,-1510.0,0.00011033,2]
[352214106,1739001044147,-150.0,0.00011091,2]
[352214108,1739001044156,-1000.0,0.00011093,2]
[352214110,1739001044166,-150.0,0.00011148,2]
[352214112,1739001044176,-1000.0,0.00011163,2]
[352214114,1739001044185,-150.0,0.00011169,2]
[352214116,1739001044195,-300.0,0.00011178,2]
[352214118,1739001044204,-218.65433745,0.0001121,2]
[352214120,1739001044213,-166.27,0.00011228,2]
[352214122,1739001044222,-150.0,0.00011254,2]
[352214124,1739001044232,-2303.38358581,0.0001128,2]
[352214126,1739001044242,-150.0,0.00011292,2]
[352214128,1739001044251,-150.0,0.00011303,2]
[352214130,1739001044260,-150.0,0.0001135,2]
[352214131,1739001044270,-1059.0,0.00011374,2]
[352214132,1739001044279,-568.0,0.00011385,2]
[352214133,1739001044288,-328.317,0.00011385,2]
[352214134,1739001044299,-1965.963,0.00011385,2]
[352214135,1739001044310,-783.0,0.00011385,2]
[352214136,1739001044319,-907.0,0.00011385,2]
[352214137,1739001044328,-1264.0,0.00011385,2]
[352214138,1739001044338,-2954.0,0.00011385,2]
[352214139,1739001044347,-4024.0,0.00011385,2]
[352214140,1739001044356,-150.0,0.00011385,2]
[352214141,1739001044366,-151.0,0.00011399,2]
[352214142,1739001044376,-2500.0,0.00011399,2]
[352214143,1739001044387,-2500.0,0.00011399,2]
[352214145,1739001044397,-150.0,0.00011425,2]
[352214146,1739001044406,-150.0,0.00011429,2]
[352214148,1739001044415,-150.0,0.00011431,2]
[352214150,1739001044424,-150.0,0.00011433,2]
[352214152,1739001044434,-152.0,0.0001147,3]
[352214154,1739001044443,-150.0,0.00011476,2]
[352214156,1739001044452,-1000.0,0.00011479,2]
[352214158,1739001044461,-150.0,0.00011481,2]
[352214160,1739001044471,-150.0,0.00011492,2]
[352214162,1739001044482,-150.0,0.00011494,2]
[352214164,1739001044492,-500.0,0.00011499,2]
[352214166,1739001044502,-473253.35319182,0.000115,2]
[352214168,1739001044511,-151.0,0.000115,2]
[352214170,1739001044520,-443.81,0.00011507,2]
[352214172,1739001044529,-150.0,0.00011513,2]
[352214174,1739001044540,-150.0,0.00011517,2]
[352214176,1739001044550,-500.03104029,0.00011521,2]
[352214178,1739001044560,-415.6582837,0.00011543,2]
[352214180,1739001044569,-150.0,0.00011555,2]
[352214182,1739001044579,-150.0,0.00011569,2]
[352214185,1739001044589,-150.0,0.00011576,2]
[352214187,1739001044599,-150.0,0.00011586,2]
[352214189,1739001044609,-150.0,0.00011595,2]
[352214191,1739001044619,-1535.692,0.00011599,2]
[352214193,1739001044628,-150.0,0.00011601,2]
[352214195,1739001044638,-150.0,0.0001161,2]
[352214197,1739001044647,-150.0,0.00011612,2]
[352214199,1739001044656,-977.54557393,0.00011619,2]
[352214201,1739001044665,-150.0,0.00011619,2]
[352214203,1739001044675,-151.0,0.00011621,2]
[352214205,1739001044684,-1000.0,0.00011636,2]
[352214206,1739001044693,-500.0,0.00011636,2]
[352214209,1739001044703,-1000.0,0.00011648,2]
[352214210,1739001044712,-387.57669024,0.00011652,2]
[352214212,1739001044722,-150.0,0.00011654,2]
[352214215,1739001044733,-1000.0,0.00011659,2]
[352214217,1739001044743,-1000.0,0.00011685,2]
[352214219,1739001044752,-1000.0,0.00011703,2]
[352214221,1739001044761,-1000.0,0.00011722,2]
[352214223,1739001044771,-1000.0,0.00011724,2]
[352214225,1739001044780,-150.0,0.00011729,2]
[352214227,1739001044789,-150.0,0.00011733,2]
[352214229,1739001044798,-2303.38358581,0.0001174,2]
[352214231,1739001044808,-150.0,0.00011745,2]
[352214233,1739001044817,-150.0,0.00011746,2]
[352214235,1739001044826,-243.14367338,0.00011753,2]
[352214237,1739001044835,-1000.0,0.00011753,2]
[352214239,1739001044845,-150.0,0.0001176,2]
[352214241,1739001044853,-1065.54513187,0.00011761,2]
[352214243,1739001044862,-151.0,0.00011764,2]
[352214245,1739001044871,-500.0,0.00011773,2]
[352214247,1739001044881,-1000.0,0.00011774,2]
[352214249,1739001044890,-151.0,0.00011779,2]
[352214250,1739001044899,-151.0,0.00011779,2]
[352214253,1739001044909,-151.0,0.00011779,2]
[352214255,1739001044918,-47378.93445941,0.00011779,2]
[352214257,1739001044928,-111804.34888989,0.0001178,2]
[352214443,1739001046647,-9621.54200003,0.0001178,2]
[352214726,1739001810750,150.0,0.00019687,120]
[352214727,1739001845390,623.95,8.219e-05,2]
[352214728,1739001870762,150.0,0.00019054,120]
[352214729,1739001968150,1578.73747445,0.0002,120]
[352214736,1739002231315,150.0,0.00019539,120]
[352214739,1739002232300,-150.0,9.888e-05,2]
[352214740,1739002232311,-150.0,9.888e-05,2]
[352214741,1739002232320,-232.19386209,9.888e-05,2]
[352214742,1739002232330,-269.04,9.951e-05,2]
[352214743,1739002232340,-2012.28355504,9.968e-05,2]
[352214744,1739002232360,-1000.0,9.968e-05,2]
[352214745,1739002232372,-550.99707701,9.968e-05,2]
[352214746,1739002232477,-2139.23480222,9.968e-05,2]
[352214747,1739002232491,-25303.65722215,9.968e-05,2]
[352214748,1739002232500,-942.33,9.968e-05,2]
[352214749,1739002232510,-1000.0,0.00010109,2]
[352214750,1739002232519,-165.81,0.00010137,2]
[352214751,1739002232529,-163.07,0.00010331,2]
[352214752,1739002232539,-623.95,0.00010481,2]
[352214753,1739002232549,-155.98,0.000106,2]
[352214754,1739002232560,-173.64,0.00010643,2]
[352214755,1739002232569,-311.07,0.00010694,2]
[352214756,1739002232580,-150.0,0.00010771,2]
[352214757,1739002232590,-22746.56758649,0.00010772,2]
[352214758,1739002232601,-575.84589646,0.000108,2]
[352214759,1739002232611,-250.0,0.00010817,2]
[352214760,1739002232621,-179.35,0.00010894,2]
[352214761,1739002232630,-1677.01929656,0.000109,2]
[352214762,1739002232640,-225.77736975,0.000109,2]
[352214763,1739002232649,-179.35,0.00010921,2]
[352214764,1739002232659,-273.52,0.00010924,2]
[352214765,1739002232669,-1000.0,0.00010944,2]
[352214766,1739002232679,-179.35,0.00010949,2]
[352214767,1739002232688,-1103.73179199,0.00010959,2]
[352214768,1739002232698,-220.24719445,0.00010986,2]
[352214769,1739002232707,-278.44435627,0.00010986,2]
[352214770,1739002232717,-10623.9464411,0.00010997,2]
[352214771,1739002232747,-3963.04,0.00010997,2]
[352214772,1739002232764,-2400.0,0.00010997,2]
[352214921,1739002238225,-921.42936603,0.000109,2]
[352214922,1739002238236,-11427.78538896,0.000109,2]
[352214923,1739002238334,-2628.7409267,0.000109,2]
[352214924,1739002238343,-4387.2087433,0.00010997,2]
[352214925,1739002238355,-626.99863006,0.00010997,2]
[352214926,1739002238396,-1418.52714052,0.00010997,2]
[352214927,1739002238407,-26386.59821995,0.00010997,2]
[352215148,1739002240694,-292.560002,0.00010997,2]
[352215151,1739002240705,-289.60227,0.00010997,2]
[352215154,1739002240733,-518.72,0.00010997,2]
[352215157,1739002240744,-404.39144206,0.00010997,2]
[352215163,1739002240797,-862.7749996,0.00010997,2]
[352215165,1739002240809,-5404.78800001,0.00010997,2]
[352215469,1739002243356,-4544.92314447,0.00010997,2]
[352215472,1739002243367,-10104.140884,0.00010997,2]
[352215481,1739002243413,-1033.09999995,0.00010997,2]
[352215484,1739002243424,-6993.79124815,0.00010997,2]
[352215487,1739002243436,-1000.0,0.00010997,2]
[352215506,1739002243574,-1983.0871459,0.00010997,2]
[352215512,1739002243630,-32425.38895653,0.00010997,2]
[352215514,1739002243640,-666.0,0.00010999,2]
[352215516,1739002243650,-500.0,0.00010999,2]
[352215518,1739002243659,-500.0,0.00010999,2]
[352215520,1739002243668,-422.40866517,0.00010999,2]
[352215522,1739002243680,-205.7958,0.00010999,2]
[352215524,1739002243689,-666.0,0.00010999,2]
[352215526,1739002243699,-666.0,0.00010999,2]
[352215528,1739002243707,-287181.27564947,0.00011,3]
[352215531,1739002243724,-15815.55142269,0.00011,3]
[352215783,1739002246756,-270.9328437,0.00011,3]
[352215806,1739002290738,150.0,0.00019305,120]
[352215807,1739002299445,260.66585256,0.0002,120]
[352215808,1739002411073,150.0,0.00019741,120]
[352215809,1739002455383,382.82049429,0.00012001,10]
[352215810,1739002733491,585.09,8.36e-05,2]
[352215811,1739002830858,150.0,0.00019669,120]
[352215812,1739003070746,150.0,0.00019871,120]
[352215813,1739003130827,150.0,0.00019513,120]
[352215825,1739003431585,-260.21385484,8.646e-05,2]
[352215826,1739003431597,-150.0,9.062e-05,2]
[352215827,1739003431609,-150.16766309,9.888e-05,2]
[352215828,1739003431622,-163.07,9.993e-05,2]
[352215829,1739003431634,-109.02228207,0.0001001,2]
[352215830,1739003431655,-176.67771793,0.0001001,2]
[352215831,1739003431667,-269.03,0.00010058,2]
[352215832,1739003431679,-370.03,0.00010137,2]
[352215833,1739003431691,-96.20418782,0.00010307,2]
[352215834,1739003431706,-903.79581218,0.00010307,2]
[352215835,1739003431717,-150.0,0.0001031,2]
[352215836,1739003431729,-260.79,0.00010322,2]
[352215837,1739003431741,-214.0,0.0001053,2]
[352215838,1739003431753,-585.09,0.00010624,2]
[352215839,1739003431764,-150.0,0.0001077,2]
[352215840,1739003431776,-272.32552679,0.000108,2]
[352215841,1739003431792,-303.52036966,0.000108,2]
[352215842,1739003431803,-44.12279534,0.0001087,2]
[352215843,1739003431845,-169.87720466,0.0001087,2]
[352215844,1739003431857,-150.0,0.00010899,2]
[352215846,1739003431869,-780.09523378,0.000109,3]
[352215850,1739003431894,-4272.84271805,0.000109,3]
[352215852,1739003431909,-9817.69241808,0.000109,3]
[352215855,1739003431932,-987.78,0.000109,3]
[352215858,1739003431952,-476.47053834,0.000109,3]
[352216427,1739003437513,-112905.91088874,0.000109,3]
[352216429,1739003437522,-174.03,0.000109,2]
[352216431,1739003437532,-1464.56,0.000109,2]
[352216433,1739003437541,-438.71,0.000109,2]
[352216435,1739003437550,-4000.0,0.000109,2]
[352216437,1739003437560,-9985.3037878,0.000109,2]
[352216439,1739003437569,-1118.01286436,0.000109,2]
[352216441,1739003437579,-1041.107756,0.00010998,3]
[352216443,1739003437588,-1041.107756,0.00010998,3]
[352216445,1739003437598,-500.0,0.00010998,2]
[352216447,1739003437607,-300.0,0.00010999,2]
[352216449,1739003437616,-300.0,0.00010999,2]
[352216451,1739003437626,-666.0,0.00010999,2]
[352216453,1739003437635,-666.0,0.00010999,2]
[352216455,1739003437645,-666.0,0.00010999,2]
[352216457,1739003437654,-666.0,0.00010999,2]
[352216459,1739003437663,-666.0,0.00010999,2]
[352216461,1739003437672,-308.39563508,0.00010999,2]
[352216463,1739003437682,-500.0,0.00010999,2]
[352216465,1739003437691,-500.0,0.00010999,2]
[352216467,1739003437701,-500.0,0.00010999,2]
[352216469,1739003437710,-500.0,0.00010999,2]
[352216471,1739003437720,-500.0,0.00010999,2]
[352216473,1739003437730,-500.0,0.00010999,2]
[352216475,1739003437739,-150.9421702,0.00010999,2]
[352216477,1739003437748,-500.0,0.00010999,2]
[352216479,1739003437757,-500.0,0.00010999,2]
[352216481,1739003437767,-500.0,0.00010999,2]
[352216483,1739003437776,-500.0,0.00010999,2]
[352216485,1739003437785,-500.0,0.00010999,2]
[352216487,1739003437794,-500.0,0.00010999,2]
[352216489,1739003437804,-500.0,0.00010999,2]
[352216491,1739003437813,-500.0,0.00010999,2]
[352216493,1739003437822,-500.0,0.00010999,2]
[352216495,1739003437832,-500.0,0.00010999,2]
[352216497,1739003437842,-211.00246405,0.00010999,2]
[352216499,1739003437852,-300.0,0.00010999,2]
[352216501,1739003437861,-666.0,0.00010999,2]
[352216503,1739003437870,-666.0,0.00010999,2]
[352216505,1739003437880,-666.0,0.00010999,2]
[352216507,1739003437889,-666.0,0.00010999,2]
[352216509,1739003437902,-669.68307831,0.00010999,2]
[352216511,1739003437911,-54999.32845065,0.00011,3]
[352216513,1739003437924,-257488.61811722,0.00011,3]
[352216515,1739003437935,-27309.82242435,0.00011,3]
[352216520,1739003437969,-534.82997,0.00011,3]
[352216522,1739003437980,-10513.38205959,0.00011,3]
[352216524,1739003437991,-667.47979663,0.00011,3]
[352217048,1739003442741,-745.44297077,0.00011,3]
[352217066,1739003442902,-962.05,0.00011,3]
[352217068,1739003442913,-18244.31520711,0.00011,3]
[352217251,1739003445530,-335409.21789373,0.00011,3]
[352217276,1739003445748,-110761.87176076,0.00011,3]
[352217874,1739004087918,150.0,7.802e-05,2]
[352217875,1739004327589,-526.58,8.488e-05,2]
[352217876,1739004362306,-285.7,0.00010167,2]
[352217877,1739004362329,-179.35,0.00010249,2]
[352217878,1739004362353,-179.35,0.00010275,2]
[352217879,1739004362379,-179.35,0.00010301,2]
[352217880,1739004402980,1000.0,0.00010251,2]
[352217881,1739004507016,208.63,0.00010292,2]
[352217882,1739004564843,165.81,0.00010137,2]
[352217883,1739004567588,3258.2249,8.836e-05,2]
[352217884,1739004617483,3165.7087,8.973e-05,2]
[352217885,1739004619157,790.5831,8.699e-05,2]
[352217886,1739004626710,352.2626,8.256e-05,2]
[352217887,1739004631657,-155.98,0.0001054,2]
[352217888,1739004631667,-107.91999861,0.00010685,2]
[352217889,1739004631680,-42.08000139,0.00010685,2]
[352217890,1739004631689,-150.0,0.0001071,2]
[352217891,1739004631698,-526.58,0.00010752,2]
[352217892,1739004631708,-1437.12877272,0.00010779,2]
[352217893,1739004631717,-1171.648,0.00010779,2]
[352217894,1739004631727,-174.03,0.00010779,2]
[352217895,1739004631736,-4000.0,0.0001089,2]
[352217896,1739004631745,-150.5182465,0.000109,2]
[352217897,1739004631754,-575.84589645,0.000109,2]
[352217898,1739004631763,-745.34190958,0.000109,2]
[352217899,1739004631774,-6656.86919186,0.000109,2]
[352217900,1739004631785,-150.0,0.00010998,2]
[352217901,1739004631794,-500.0,0.00010998,2]
[352217902,1739004631804,-301.22249601,0.00010998,2]
[352217903,1739004631813,-500.0,0.00010999,2]
[352217904,1739004631823,-205.08,0.00010999,2]
[352217905,1739004631832,-1000.0,0.00011,2]
[352217906,1739004631842,-1000.0,0.00011,3]
[352217907,1739004631851,-676.8354653,0.00011,4]
[352217959,1739004632350,-323.1645347,0.00011,4]
[352217961,1739004632359,-2764.83546535,0.00011,2]
[352217965,1739004632394,-512.47145819,0.00011,2]
[352217975,1739004632612,-15182.16052646,0.00011,2]
[352217976,1739004632621,-10736.91102898,0.00011,2]
[352217977,1739004632635,-1305.0,0.00011,2]
[352217978,1739004632650,-4858.38509949,0.00011,2]
[352217979,1739004632662,-3099.70387153,0.00011,2]
[352217980,1739004632671,-59632.24751826,0.00011,2]
[352217981,1739004632682,-20721.09618522,0.00011,2]
[352217982,1739004632694,-360.4367498,0.00011,2]
[352217983,1739004632709,-4781.50318598,0.00011,2]
[352217984,1739004632720,-1273.3784205,0.00011,2]
[352217990,1739004637585,2500.0,8.851e-05,2]
[352217991,1739004637596,-124544.69654093,0.00010999,3]
[352217992,1739004637607,-7766.15755793,0.00010999,3]
[352217993,1739004637633,-1451.81269866,0.00010999,3]
[352217994,1739004637643,-3378.57078325,0.00010999,3]
[352217995,1739004637654,-119563.86001591,0.00010999,3]
[352217996,1739004637686,-14784.48,0.00010999,3]
[352217997,1739004637741,-9564.14507493,0.00010999,3]
[352218229,1739004639837,-705.20017422,0.00010999,3]
[352218231,1739004639848,-394.04068009,0.00010999,3]
[352218233,1739004639860,-573.619998,0.00010999,3]
[352218255,1739004640069,-788.8662923,0.00010999,3]
[352218262,1739004640122,-119601.91169063,0.00010999,3]
[352218264,1739004640133,-160454.4896752,0.00010999,3]
[352218570,1739004642952,-49129.46000001,0.00010999,3]
[352218576,1739004643005,-10054.0,0.00010999,3]
[352218578,1739004643016,-2256.41,0.00010999,3]
[352218580,1739004643027,-298.362,0.00010999,3]
[352218583,1739004643042,-2127.5000002,0.00010999,3]
[352218635,1739004643608,1168.8339,8.699e-05,2]
[352218856,1739004645869,-1380.01151033,0.00010999,3]
[352218858,1739004645881,-7151.25,0.00010999,3]
[352219913,1739004656738,3374.7975,8.699e-05,2]
[352220079,1739004669129,1566.8409,8.699e-05,2]
[352220080,1739004675219,267.6224,8.119e-05,2]
[352220081,1739004681733,4657.8205,8.973e-05,2]
[352220082,1739004704148,8929.4133,8.836e-05,2]
[352220083,1739004786368,342.1795,8.973e-05,2]
[352220087,1739004807914,473.92,8.779e-05,2]
[352220088,1739005138368,3808.0,0.0001,2]
[352220089,1739005162898,12619.0227,0.0001,2]
[352220093,1739005759769,450.22,8.219e-05,2]
[352220099,1739005831855,-575.84589645,9.926e-05,2]
[352220100,1739005831868,-300.0,9.999e-05,2]
[352220101,1739005831877,-5866.80260696,0.0001,2]
[352220102,1739005831889,-694.33936473,0.0001,2]
[352220103,1739005831959,-335.02548513,0.0001,2]
[352220104,1739005832014,-1026.73024974,0.0001,2]